bitfinex/quotes_ETHUSD_20250620
["timestamp","ask_amount","ask_price","bid_price","bid_amount"]
[1750463337189,1.22559929,2408.1,2408.0,4.15282392]
[1750463337562,1.16649929,2408.1,2408.0,4.15282392]
[1750463337756,0.41179929,2408.1,2408.0,4.15282392]
[1750463338365,0.4116977,2408.1,2408.0,4.15282392]
[1750463338567,0.0244426,2408.1,2408.0,4.15282392]
[1750463342764,0.0244426,2408.1,2408.0,12.77697776]
[1750463342964,0.0244426,2408.1,2408.0,15.85015222]
[1750463345773,0.0244426,2408.1,2408.0,5.84034394]
[1750463345981,0.0244426,2408.1,2408.0,4.15282392]
[1750463347356,0.0244426,2408.1,2408.0,4.19434789]
[1750463348280,0.0830426,2408.1,2408.0,4.15282392]
[1750463350476,0.47095178,2408.1,2408.0,4.15282392]
[1750463351800,0.47101677,2408.1,2408.0,4.15282392]
[1750463355159,0.0830426,2408.1,2408.0,4.15282392]
[1750463356306,0.0244426,2408.1,2408.0,4.15282392]
[1750463356503,0.0830426,2408.1,2408.0,4.15282392]
[1750463360094,0.47143699,2408.1,2408.0,4.15282392]
[1750463360295,1.63067068,2408.1,2408.0,4.15282392]
[1750463362209,1.63095252,2408.1,2408.0,4.15282392]
[1750463362411,1.63089539,2408.1,2408.0,4.15282392]
[1750463362910,1.24221883,2408.1,2408.0,4.15282392]
[1750463363116,1.63089668,2408.1,2407.5,4.15357706]
[1750463363413,0.8685,2407.9,2407.8,4.15316886]
[1750463363609,2.49608375,2407.9,2407.8,4.15316886]
[1750463363974,2.49608375,2407.9,2407.7,4.15331318]
[1750463363975,0.8685,2407.8,2407.7,4.15325674]
[1750463364208,1.64584659,2407.8,2407.7,4.15325674]
[1750463364395,1.64584742,2407.8,2407.7,4.15325674]
[1750463364593,1.64584291,2407.8,2407.7,4.15325674]
[1750463364793,2.75745017,2407.8,2407.7,4.15325674]
[1750463364996,2.36877767,2407.8,2407.7,4.15325674]
[1750463365204,2.75746362,2407.8,2407.7,4.15325674]
[1750463365508,0.0586,2407.7,2407.6,4.15344496]
[1750463365807,0.8099,2407.7,2407.5,4.1536446]
[1750463366010,0.77735413,2407.6,2407.5,4.1536446]
[1750463366215,0.83595413,2407.6,2407.5,4.1536446]
[1750463366387,0.83596289,2407.6,2407.5,4.1536446]
[1750463366591,1.64586161,2407.6,2407.5,4.1536446]
[1750463366792,3.96706313,2407.6,2407.5,4.1536446]
[1750463366979,1.64586161,2407.6,2407.5,4.1536446]
[1750463367314,1.64551408,2407.6,2407.5,4.1536446]
[1750463367491,1.64515888,2407.6,2407.5,4.1536446]
[1750463367878,8.47815888,2407.6,2407.5,4.1536446]
[1750463368210,8.47815642,2407.6,2407.5,4.1536446]
[1750463368513,9.48259175,2407.6,2407.5,4.1536446]
[1750463368812,9.48259799,2407.6,2407.5,4.1536446]
[1750463369712,9.48256037,2407.6,2407.5,4.1536446]
[1750463370212,9.48234181,2407.6,2407.5,4.1536446]
[1750463370379,9.48234105,2407.6,2407.5,4.1536446]
[1750463370575,9.48234105,2407.6,2406.8,0.786]
[1750463370827,1.82869879,2407.5,2407.4,4.15385893]
[1750463370980,1.82871378,2407.5,2407.4,4.15385893]
[1750463371720,1.82843615,2407.5,2407.4,4.15385893]
[1750463372595,1.82840184,2407.5,2407.4,4.15385893]
[1750463372795,1.82815387,2407.5,2407.4,4.15385893]
[1750463373185,0.0607,2407.4,2407.1,4.1543215]
[1750463373397,1.00945107,2407.4,2407.3,4.15403148]
[1750463373584,1.78508667,2407.4,2407.3,4.15403148]
[1750463373785,2.60958887,2407.4,2407.3,4.15403148]
[1750463374208,2.60959109,2407.4,2407.3,4.15403148]
[1750463374408,3.62195107,2407.4,2407.2,4.15413893]
[1750463374598,0.44852184,2407.3,2407.2,4.15413893]
[1750463374799,0.83653687,2407.3,2407.2,4.15413893]
[1750463375289,0.8365378,2407.3,2407.2,4.15413893]
[1750463375506,0.83653782,2407.3,2407.2,4.15413893]
[1750463375725,0.83653784,2407.3,2407.2,4.15413893]
[1750463376126,0.44852184,2407.3,2407.2,4.15413893]
[1750463376727,0.44853201,2407.3,2407.2,4.15413893]
[1750463377232,10.88817919,2407.3,2407.1,4.15424325]
[1750463377577,0.7805,2406.9,2406.7,4.15490393]
[1750463377822,0.0607,2406.7,2406.6,4.21725031]
[1750463378010,0.44855403,2406.7,2406.6,4.21725031]
[1750463379123,0.38785403,2406.7,2406.6,4.21725031]
[1750463379313,1.43355943,2406.7,2406.6,4.21725031]
[1750463380192,1.43322842,2406.7,2406.6,4.21725031]
[1750463380646,1.37252842,2406.7,2406.6,4.21725031]
[1750463380804,0.7805,2407.1,2407.0,4.15454923]
[1750463380991,7.6135,2407.1,2406.8,4.1547496]
[1750463381192,1.53630035,2407.0,2406.8,4.1547496]
[1750463381399,0.38747521,2406.9,2406.8,4.1547496]
[1750463381807,16.833,2407.1,2407.0,4.15454923]
[1750463382007,17.60792494,2407.1,2407.0,4.15454923]
[1750463382328,7.22046214,2407.1,2407.0,4.15454923]
[1750463382903,7.2202802,2407.1,2407.0,4.15454923]
[1750463383225,7.22028184,2407.1,2407.0,4.15454923]
[1750463383521,7.22028071,2407.1,2407.0,4.15454923]
[1750463383748,9.26592878,2407.1,2406.9,4.15464488]
[1750463383895,0.44798055,2407.0,2406.8,4.15481849]
[1750463384097,1.26238055,2406.9,2406.8,4.15481849]
[1750463384323,1.2624038,2406.9,2406.8,4.15481849]
[1750463384699,2.20973899,2406.9,2406.6,0.0621]
[1750463385004,8.6817,2406.8,2406.7,4.15506203]
[1750463385405,8.6817,2406.8,2406.6,0.0621]
[1750463385406,8.621,2406.8,2406.6,4.21731913]
[1750463385617,8.621,2406.8,2406.7,4.1550671]
[1750463387436,9.06896418,2406.8,2406.7,4.1550671]
[1750463387595,8.6817,2406.8,2406.7,4.1550671]
[1750463387797,9.06896439,2406.8,2406.7,4.1550671]
[1750463388001,8.6817,2406.8,2406.7,4.1550671]
[1750463388439,9.06903472,2406.8,2406.7,4.1550671]
[1750463388750,9.00833366,2406.8,2406.7,4.1550671]
[1750463389513,9.00833366,2406.8,2406.6,4.21722596]
[1750463389514,9.91523703,2406.8,2406.6,4.21722596]
[1750463389839,0.44803366,2406.7,2406.6,4.21722596]
[1750463391843,0.44858298,2406.7,2406.6,4.21722596]
[1750463392005,11.61507352,2406.7,2406.6,0.0621]
[1750463392338,13.72939692,2406.7,2406.6,0.0621]
[1750463392639,13.72944838,2406.7,2406.6,0.0621]
[1750463393028,13.72929781,2406.7,2406.6,0.0621]
[1750463393335,22.35029781,2406.7,2406.6,4.21733975]
[1750463394129,22.35056159,2406.7,2406.6,4.21733975]
[1750463394326,11.5545639,2406.7,2406.6,4.21733975]
[1750463394532,19.3949639,2406.7,2406.6,4.21733975]
[1750463394730,19.39495866,2406.7,2406.6,4.21733975]
[1750463395319,19.39595866,2406.7,2406.6,4.21733975]
[1750463395607,17.60895866,2406.7,2406.6,4.21733975]
[1750463395814,17.66965866,2406.7,2406.6,4.21733975]
[1750463396334,17.60895866,2406.7,2406.6,4.21733975]
[1750463396529,19.69994486,2406.7,2406.6,0.0621]
[1750463396934,19.31217011,2406.7,2406.6,0.0621]
[1750463397309,19.70039371,2406.7,2406.6,0.0621]
[1750463397513,18.9239862,2406.7,2406.6,0.0621]
[1750463397748,19.70027166,2406.7,2406.6,0.0621]
[1750463398112,21.42657166,2406.7,2406.6,4.21733975]
[1750463398312,19.39628546,2406.7,2406.6,4.21733975]
[1750463398813,19.39627813,2406.7,2406.6,4.21733975]
[1750463399257,19.00814273,2406.7,2406.6,4.21733975]
[1750463399455,19.39627618,2406.7,2406.6,4.21733975]
[1750463399621,19.39627497,2406.7,2406.6,4.21733975]
[1750463400017,9.00813224,2406.7,2406.6,4.21733975]
[1750463400237,9.39645438,2406.7,2406.6,4.21733975]
[1750463400443,9.39663454,2406.7,2406.6,4.21733975]
[1750463400963,9.39663607,2406.7,2406.6,4.21733975]
[1750463402040,19.0083188,2406.7,2406.6,4.21733975]
[1750463402242,19.39663703,2406.7,2406.6,4.21733975]
[1750463403164,19.39712257,2406.7,2406.6,4.21733975]
[1750463403322,0.77712244,2406.7,2406.6,5.19743493]
[1750463404152,0.38856115,2406.7,2406.6,4.21733975]
[1750463404339,0.77708908,2406.7,2406.6,4.21733975]
[1750463404724,0.77706861,2406.7,2406.6,4.21733975]
[1750463405657,0.77707008,2406.7,2406.6,4.21733975]
[1750463405857,6.832,2406.8,2406.7,4.1550671]
[1750463406041,7.60918646,2406.8,2406.7,4.1550671]
[1750463406242,7.60948663,2406.8,2406.7,4.1550671]
[1750463407261,7.60977788,2406.8,2406.7,4.1550671]
[1750463408046,7.60977904,2406.8,2406.7,4.1550671]
[1750463408429,7.60977791,2406.8,2406.7,4.1550671]
[1750463408755,7.6098239,2406.8,2406.7,4.1550671]
[1750463408964,7.60982588,2406.8,2406.7,4.1550671]
[1750463409857,7.60982769,2406.8,2406.7,4.1550671]
[1750463410261,7.6097937,2406.8,2406.7,4.1550671]
[1750463410463,0.7777937,2406.8,2406.7,4.1550671]
[1750463410660,7.60876908,2406.8,2406.7,4.1550671]
[1750463411029,0.77776908,2406.8,2406.7,4.1550671]
[1750463411234,7.60876908,2406.8,2406.7,4.1550671]
[1750463411758,7.60877798,2406.8,2406.7,4.1550671]
[1750463412132,7.21988899,2406.8,2406.7,4.1550671]
[1750463412673,7.60883815,2406.8,2406.7,4.1550671]
[1750463413479,7.60903818,2406.8,2406.7,4.1550671]
[1750463413776,0.77803813,2406.8,2406.7,4.1550671]
[1750463413952,1.8486,2407.0,2406.8,4.15475892]
[1750463414157,7.60907356,2406.9,2406.8,4.15475892]
[1750463414359,7.60907349,2406.9,2406.8,4.15475892]
[1750463414675,7.67068443,2406.9,2406.8,4.15475892]
[1750463414877,7.60908443,2406.9,2406.8,4.15475892]
[1750463415380,7.22004224,2406.9,2406.8,4.15475892]
[1750463415568,7.6090896,2406.9,2406.8,4.15475892]
[1750463415766,7.6090885,2406.9,2406.8,4.15475892]
[1750463416159,7.22004425,2406.9,2406.8,4.15475892]
[1750463416369,7.22004432,2406.9,2406.8,4.15475892]
[1750463416584,7.60908859,2406.9,2406.8,4.15475892]
[1750463416882,7.60908878,2406.9,2406.8,4.15475892]
[1750463417382,6.831,2406.9,2406.8,4.15475892]
[1750463417679,7.60909972,2406.9,2406.8,4.15475892]
[1750463417884,7.60910045,2406.9,2406.8,4.15475892]
[1750463418088,7.60915416,2406.9,2406.8,4.15475892]
[1750463418273,7.6091541,2406.9,2406.8,4.15475892]
[1750463418676,7.60915444,2406.9,2406.8,4.15475892]
[1750463418892,7.60915551,2406.9,2406.8,4.15475892]
[1750463419084,7.22007846,2406.9,2406.8,4.15475892]
[1750463419284,8.57762606,2406.9,2406.8,4.15475892]
[1750463419586,9.39822606,2406.9,2406.8,4.15475892]
[1750463420256,9.00915271,2406.9,2406.8,4.15475892]
[1750463420455,9.39823757,2406.9,2406.8,4.15475892]
[1750463420867,9.39820301,2406.9,2406.8,4.15475892]
[1750463421590,9.39820599,2406.9,2406.8,4.15475892]
[1750463421785,0.0616,2406.8,2406.7,4.15494872]
[1750463422082,0.83975802,2406.8,2406.7,4.15494872]
[1750463422291,0.77816449,2406.8,2406.7,4.15494872]
[1750463422463,0.38909691,2406.8,2406.7,4.15494872]
[1750463422665,18.62006785,2406.9,2406.8,4.15489446]
[1750463422875,19.39831833,2406.9,2406.8,4.15489446]
[1750463423094,19.39831822,2406.9,2406.8,4.15489446]
[1750463423289,12.56729869,2406.9,2406.8,4.15489446]
[1750463423591,17.60723021,2406.9,2406.8,4.15489446]
[1750463423994,17.60724533,2406.9,2406.8,4.15489446]
[1750463424195,17.60725933,2406.9,2406.8,4.15489446]
[1750463424995,17.60725796,2406.9,2406.8,4.15489446]
[1750463425164,10.77825796,2406.9,2406.8,4.15489446]
[1750463425367,17.60725394,2406.9,2406.8,4.15489446]
[1750463426093,17.21816152,2406.9,2406.8,4.15489446]
[1750463426299,17.60731829,2406.9,2406.8,4.15489446]
[1750463426997,17.60735802,2406.9,2406.8,4.15489446]
[1750463427364,17.60734874,2406.9,2406.8,4.15489446]
[1750463427691,16.829,2406.9,2406.8,4.15489446]
[1750463427899,17.60757506,2406.9,2406.8,4.15489446]
[1750463428291,7.60757506,2406.9,2406.8,4.15489446]
[1750463428597,7.6075736,2406.9,2406.8,4.15489446]
[1750463429194,0.8339,2407.4,2406.9,0.82]
[1750463429398,19.62444242,2407.3,2407.2,4.15404548]
[1750463429596,21.73187413,2407.3,2407.2,4.15404548]
[1750463429797,0.0616,2407.2,2407.1,4.15428746]
[1750463430096,10.68463896,2407.2,2407.1,4.15428746]
[1750463430401,0.7723,2407.1,2407.0,4.1544606]
[1750463430586,8.61227492,2407.1,2406.7,4.15496232]
[1750463430797,2.63968116,2407.0,2406.7,4.15496232]
[1750463430966,7.66805367,2406.9,2406.8,4.15489446]
[1750463431368,7.66807542,2406.9,2406.8,4.15489446]
[1750463431568,17.66807542,2406.9,2406.8,4.15489446]
[1750463431875,17.66810564,2406.9,2406.8,4.15489446]
[1750463432078,20.4592775,2406.9,2406.8,4.15489446]
[1750463432270,20.69282562,2406.9,2406.8,4.15489446]
[1750463432470,20.69284942,2406.9,2406.8,4.15489446]
[1750463432674,21.46044942,2406.9,2406.7,4.15502399]
[1750463432885,0.77852494,2406.8,2406.7,4.15502399]
[1750463433099,1.01209933,2406.8,2406.7,4.15502399]
[1750463433303,1.01216016,2406.8,2406.7,4.15502399]
[1750463433465,1.01230173,2406.8,2406.7,4.15502399]
[1750463433670,1.06920173,2406.8,2406.7,4.15502399]
[1750463433974,1.06931342,2406.8,2406.7,4.15502399]
[1750463434313,1.06931267,2406.8,2406.7,4.15502399]
[1750463434519,1.06931309,2406.8,2406.7,4.15502399]
[1750463434818,1.06930981,2406.8,2406.7,4.15502399]
[1750463435388,1.06927093,2406.8,2406.7,4.15502399]
[1750463436235,1.01233465,2406.8,2406.6,4.21725622]
[1750463436413,7.66261896,2406.7,2406.6,0.0621]
[1750463436587,7.66263373,2406.7,2406.6,0.0621]
[1750463436790,7.66265866,2406.7,2406.6,0.0621]
[1750463437303,7.66265866,2406.7,2406.6,4.21733975]
[1750463437482,8.82385788,2406.7,2406.6,4.21733975]
[1750463437698,7.6057492,2406.7,2406.6,4.21733975]
[1750463437905,7.60573384,2406.7,2406.6,4.21733975]
[1750463438203,7.6057276,2406.7,2406.6,4.21733975]
[1750463438399,0.7787276,2406.7,2406.6,4.21733975]
[1750463438702,7.6057276,2406.7,2406.6,4.21733975]
[1750463438907,7.60570736,2406.7,2406.6,4.21733975]
[1750463439545,7.60570815,2406.7,2406.6,4.21733975]
[1750463439902,7.21634179,2406.7,2406.6,4.21733975]
[1750463440138,7.60568395,2406.7,2406.6,4.21733975]
[1750463440544,7.60568234,2406.7,2406.6,4.21733975]
[1750463441138,7.21634117,2406.7,2406.6,4.21733975]
[1750463441335,7.60567383,2406.7,2406.6,4.21733975]
[1750463442240,7.66257383,2406.7,2406.6,4.21733975]
[1750463442434,9.68446121,2406.7,2406.6,4.21733975]
[1750463442644,9.91806388,2406.7,2406.6,4.21733975]
[1750463443045,9.91806388,2406.7,2406.6,0.0621]
[1750463443046,28.30047537,2406.7,2406.6,0.0621]
[1750463443361,28.30053157,2406.7,2406.6,0.0621]
[1750463443574,28.30057653,2406.7,2406.6,0.0621]
[1750463443842,28.29992593,2406.7,2406.6,0.0621]
[1750463445052,28.29972223,2406.7,2406.6,0.0621]
[1750463445547,28.06629611,2406.7,2406.6,0.0621]
[1750463445914,28.29946911,2406.7,2406.6,0.0621]
[1750463446910,28.29927085,2406.7,2406.6,0.0621]
[1750463447110,28.29925075,2406.7,2406.6,0.0621]
[1750463447345,28.29924987,2406.7,2406.6,0.0621]
[1750463447522,28.29925941,2406.7,2406.6,0.0621]
[1750463447934,28.29921947,2406.7,2406.6,0.0621]
[1750463448353,32.45428657,2406.7,2406.6,0.0621]
[1750463448846,32.45429145,2406.7,2406.6,0.0621]
[1750463449240,32.45393486,2406.7,2406.6,0.0621]
[1750463449442,32.45393486,2406.7,2405.9,0.761]
[1750463449443,0.7723,2406.4,2405.8,4.15647828]
[1750463449641,10.0,2406.2,2405.6,4.91795521]
[1750463449944,10.0,2406.2,2406.1,4.91704365]
[1750463449945,1.784,2406.2,2406.1,4.91704365]
[1750463450265,2.56145786,2406.2,2406.1,4.91704365]
[1750463450569,7.6034193,2406.2,2406.1,4.91704365]
[1750463450939,7.6033678,2406.2,2406.1,4.91704365]
[1750463451257,7.6033717,2406.2,2406.1,4.91704365]
[1750463452168,7.60300244,2406.2,2406.1,4.91704365]
[1750463453180,7.60300268,2406.2,2406.1,4.91704365]
[1750463453379,7.60300268,2406.2,2406.1,4.15604365]
[1750463453877,7.60292958,2406.2,2406.1,4.15604365]
[1750463454080,8.54741254,2406.2,2406.0,4.15624984]
[1750463454276,0.77692958,2406.1,2406.0,4.15624984]
[1750463454483,7.60292958,2406.1,2406.0,4.15624984]
[1750463454642,7.60284147,2406.1,2406.0,4.15624984]
[1750463455054,7.60283349,2406.1,2406.0,4.15624984]
[1750463455260,8.77398514,2406.1,2406.0,4.15624984]
[1750463455784,8.77387863,2406.1,2406.0,4.15624984]
[1750463456977,8.38556838,2406.1,2406.0,4.15624984]
[1750463457168,8.77387815,2406.1,2406.0,4.15624984]
[1750463457776,8.38556838,2406.1,2406.0,4.15624984]
[1750463457983,8.77363045,2406.1,2406.0,4.15624984]
[1750463458367,0.7764788,2406.1,2406.0,4.15624984]
[1750463458677,2.02188738,2406.7,2406.3,5.0306578]
[1750463458678,6.826,2406.4,2406.3,5.0306578]
[1750463458884,7.60234898,2406.4,2406.3,4.9718578]
[1750463459052,7.60234414,2406.4,2406.3,4.9718578]
[1750463459381,7.60234414,2406.4,2406.3,5.0306578]
[1750463459759,0.77634414,2406.4,2406.3,5.0306578]
[1750463459958,0.77662572,2406.4,2406.3,5.0306578]
[1750463460253,1.53717138,2406.4,2406.3,4.1557578]
[1750463460462,0.76026257,2406.4,2406.3,4.1557578]
[1750463460673,1.14874664,2406.4,2406.3,4.1557578]
[1750463460878,1.53722443,2406.4,2406.3,4.1557578]
[1750463461076,7.60296186,2406.4,2406.3,4.1557578]
[1750463461280,7.60296186,2406.4,2406.3,4.2145578]
[1750463461645,7.60293698,2406.4,2406.3,4.2145578]
[1750463461844,0.77693698,2406.4,2406.3,5.0306578]
[1750463462043,0.77690251,2406.4,2406.3,5.0306578]
[1750463462481,0.38845605,2406.4,2406.3,5.0306578]
[1750463462693,6.826,2406.5,2406.4,4.1555851]
[1750463462880,7.60308178,2406.5,2406.4,4.1555851]
[1750463463084,7.21458821,2406.5,2406.4,4.1555851]
[1750463463375,7.6031759,2406.5,2406.4,4.1555851]
[1750463463748,7.60317468,2406.5,2406.4,4.1555851]
[1750463464071,7.21458673,2406.5,2406.4,4.1555851]
[1750463464268,7.60317254,2406.5,2406.4,4.1555851]
[1750463464484,7.60317129,2406.5,2406.4,4.1555851]
[1750463464962,7.6032296,2406.5,2406.4,4.1555851]
[1750463465647,7.60331963,2406.5,2406.4,4.1555851]
[1750463465848,7.60331965,2406.5,2406.4,4.1555851]
[1750463466050,7.6033517,2406.5,2406.4,4.1555851]
[1750463466247,7.60334698,2406.5,2406.4,4.1555851]
[1750463466593,7.60335146,2406.5,2406.4,4.1555851]
[1750463466797,8.36368661,2406.5,2406.4,4.1555851]
[1750463468092,8.36397301,2406.5,2406.4,4.1555851]
[1750463468650,8.36397429,2406.5,2406.4,4.1555851]
[1750463469064,7.58633515,2406.5,2406.4,4.1555851]
[1750463469268,8.36397563,2406.5,2406.4,4.1555851]
[1750463469794,8.42387563,2406.5,2406.4,4.1555851]
[1750463470005,8.36397563,2406.5,2406.4,4.1555851]
[1750463470880,0.77764048,2406.5,2406.4,4.1555851]
[1750463471284,7.6027684,2406.5,2406.4,4.1555851]
[1750463471597,7.60277272,2406.5,2406.4,4.1555851]
[1750463472192,7.60290966,2406.5,2406.4,4.1555851]
[1750463472393,7.27385524,2406.5,2406.4,4.1555851]
[1750463472596,7.66282133,2406.5,2406.4,4.1555851]
[1750463472898,8.54741989,2406.5,2406.4,4.1555851]
[1750463474260,8.54738727,2406.5,2406.4,4.1555851]
[1750463474572,8.5473819,2406.5,2406.4,4.1555851]
[1750463474894,8.54738193,2406.5,2406.4,4.1555851]
[1750463475254,8.60728193,2406.5,2406.4,4.1555851]
[1750463475491,8.21833203,2406.5,2406.4,4.1555851]
[1750463475692,8.60731308,2406.5,2406.4,4.1555851]
[1750463475998,8.60731715,2406.5,2406.4,4.1555851]
[1750463476289,8.60728094,2406.5,2406.4,4.1555851]
[1750463476707,8.60728611,2406.5,2406.4,4.1555851]
[1750463477194,8.60729016,2406.5,2406.4,4.1555851]
[1750463477510,8.60727967,2406.5,2406.4,4.1555851]
[1750463477872,8.60728449,2406.5,2406.4,4.1555851]
[1750463478210,8.60728685,2406.5,2406.4,4.1555851]
[1750463480183,8.15843331,2406.5,2406.4,4.1555851]
[1750463480382,0.77790159,2406.5,2406.4,4.1555851]
[1750463480708,7.6018867,2406.5,2406.4,4.1555851]
[1750463480882,7.60187256,2406.5,2406.4,4.1555851]
[1750463481085,7.21293628,2406.5,2406.4,4.1555851]
[1750463481286,7.60192598,2406.5,2406.4,4.1555851]
[1750463481484,0.77792598,2406.5,2406.4,4.1555851]
[1750463481686,7.60192598,2406.5,2406.4,4.1555851]
[1750463482410,7.21296299,2406.5,2406.4,4.1555851]
[1750463482578,7.60192676,2406.5,2406.4,4.1555851]
[1750463482778,0.77792676,2406.5,2406.4,4.1555851]
[1750463482974,7.60192676,2406.5,2406.4,4.1555851]
[1750463483179,7.60192774,2406.5,2406.4,4.1555851]
[1750463483702,7.60194124,2406.5,2406.4,4.1555851]
[1750463484374,7.60194004,2406.5,2406.4,4.1555851]
[1750463484598,8.60023416,2406.5,2406.4,4.1555851]
[1750463486089,8.60044931,2406.5,2406.4,4.1555851]
[1750463486615,7.82229412,2406.5,2406.4,4.1555851]
[1750463486786,8.60065352,2406.5,2406.4,4.1555851]
[1750463487389,8.60065678,2406.5,2406.4,4.1555851]
[1750463487724,8.83445656,2406.5,2406.4,4.1555851]
[1750463488029,8.83494037,2406.5,2406.4,4.1555851]
[1750463488331,8.83542107,2406.5,2406.4,4.1555851]
[1750463488535,8.83542107,2406.5,2406.3,4.15569142]
[1750463488689,1.72277033,2406.4,2406.3,4.15569142]
[1750463488889,0.83922822,2406.4,2406.3,4.15569142]
[1750463489120,0.44956366,2406.4,2406.3,4.15569142]
[1750463489294,0.0599,2406.4,2406.3,4.15569142]
[1750463489701,0.83924688,2406.4,2406.3,4.15569142]
[1750463490117,0.77933533,2406.4,2406.3,4.15569142]
[1750463490500,0.77933997,2406.4,2406.3,4.15569142]
[1750463491109,0.77933161,2406.4,2406.3,4.15569142]
[1750463491514,0.83923161,2406.4,2406.3,4.15569142]
[1750463492034,0.77933161,2406.4,2406.3,4.15569142]
[1750463492233,0.77933122,2406.4,2406.3,4.15569142]
[1750463492432,6.824,2406.5,2406.4,4.1555851]
[1750463492604,9.52484826,2406.5,2406.4,4.1555851]
[1750463493118,9.52485286,2406.5,2406.4,4.1555851]
[1750463493521,9.07508673,2406.5,2406.4,4.1555851]
[1750463493724,2.64076127,2406.5,2406.3,4.15566536]
[1750463493927,0.77933616,2406.4,2406.3,4.15566536]
[1750463494325,0.6835684,2406.4,2406.3,4.15566536]
[1750463494528,9.38233959,2406.4,2406.3,4.15566536]
[1750463494834,9.38233959,2406.4,2406.2,4.15583896]
[1750463494835,10.63767434,2406.4,2406.2,4.15583896]
[1750463495035,0.0601,2406.2,2405.7,0.7967]
[1750463495234,7.21166162,2406.1,2406.0,4.15618524]
[1750463495441,7.83539167,2406.1,2406.0,4.15618524]
[1750463495641,7.89549167,2406.1,2406.0,4.15618524]
[1750463495801,9.52333418,2406.1,2406.0,4.15618524]
[1750463496007,0.0601,2406.0,2405.9,4.15635779]
[1750463496218,0.83962474,2406.0,2405.9,4.15635779]
[1750463496422,1.61255306,2406.0,2405.9,4.15635779]
[1750463497025,1.61202414,2406.0,2405.9,4.15635779]
[1750463497910,1.61199956,2406.0,2405.9,4.15635779]
[1750463498121,6.822,2406.1,2406.0,4.15627597]
[1750463498445,7.60043551,2406.1,2406.0,4.15627597]
[1750463498604,17.60043551,2406.1,2406.0,4.15627597]
[1750463499003,17.60042312,2406.1,2406.0,4.15627597]
[1750463499449,17.60028806,2406.1,2406.0,4.15627597]
[1750463500005,17.60016082,2406.1,2406.0,4.15627597]
[1750463500443,17.60016726,2406.1,2406.0,4.15627597]
[1750463501042,17.60014737,2406.1,2406.0,4.15627597]
[1750463501214,19.42627211,2406.1,2406.0,4.15627597]
[1750463501417,19.03718859,2406.1,2406.0,4.15627597]
[1750463501726,19.42625244,2406.1,2406.0,4.15627597]
[1750463502117,20.21265244,2406.1,2406.0,4.15627597]
[1750463502516,20.21253022,2406.1,2406.0,4.15627597]
[1750463503253,20.21250849,2406.1,2406.0,4.15627597]
[1750463503414,19.36600849,2406.1,2406.0,4.15627597]
[1750463503746,19.42610849,2406.1,2406.0,4.15627597]
[1750463504104,19.36597242,2406.1,2406.0,4.15627597]
[1750463504341,17.59994768,2406.1,2406.0,4.15627597]
[1750463504533,17.5999289,2406.1,2406.0,4.15627597]
[1750463504735,17.59994243,2406.1,2406.0,4.15627597]
[1750463504930,17.59994343,2406.1,2406.0,4.15627597]
[1750463505106,10.77793981,2406.1,2406.0,4.15627597]
[1750463505311,10.38893534,2406.1,2406.0,4.97367597]
[1750463505639,0.77784699,2406.1,2406.0,5.94328828]
[1750463505816,0.38893534,2406.1,2406.0,5.94328828]
[1750463506016,6.822,2406.3,2406.0,5.94328828]
[1750463506017,16.822,2406.3,2406.2,5.02993051]
[1750463506336,17.59974781,2406.3,2406.2,5.02993051]
[1750463506538,10.77774781,2406.3,2406.2,5.02993051]
[1750463506933,10.7777652,2406.3,2406.2,4.97333051]
[1750463507533,10.7777652,2406.3,2406.2,5.02993051]
[1750463508147,10.7777652,2406.3,2406.2,4.97333051]
[1750463509965,10.38885089,2406.3,2406.2,5.02993051]
[1750463510262,10.77768595,2406.3,2406.2,5.02993051]
[1750463510560,10.77767736,2406.3,2406.2,5.02993051]
[1750463511438,0.38883868,2406.3,2406.2,6.36415884]
[1750463511638,0.38883868,2406.3,2406.2,6.40571265]
[1750463511834,16.821,2406.5,2406.4,4.1555851]
[1750463512037,17.59859448,2406.5,2406.4,4.2121851]
[1750463512239,10.77759448,2406.5,2406.4,4.2121851]
[1750463512559,10.77751559,2406.5,2406.4,4.2121851]
[1750463512748,10.77751589,2406.5,2406.4,4.2121851]
[1750463513126,10.7775158,2406.5,2406.4,4.2121851]
[1750463513655,10.77743681,2406.5,2406.4,4.2121851]
[1750463514037,10.38871825,2406.5,2406.4,4.2121851]
[1750463514236,10.0,2406.5,2406.4,4.2121851]
[1750463518684,4.3508012,2406.9,2406.8,4.15489446]
[1750463518849,22.50335215,2406.9,2406.8,4.15489446]
[1750463520469,22.89187634,2406.9,2406.8,4.15489446]
[1750463520767,23.28040051,2406.9,2406.8,4.15489446]
[1750463521065,16.46040051,2406.9,2406.8,4.15489446]
[1750463521364,23.27939941,2406.9,2406.8,4.15489446]
[1750463521668,23.27931275,2406.9,2406.8,4.15489446]
[1750463521967,14.68131275,2406.9,2406.8,4.15489446]
[1750463522157,21.49861275,2406.9,2406.8,4.15489446]
[1750463523165,21.11013245,2406.9,2406.8,4.15489446]
[1750463523348,21.49861953,2406.9,2406.8,4.15489446]
[1750463524170,20.72165215,2406.9,2406.8,4.15489446]
[1750463524371,13.34867568,2406.9,2406.8,4.15489446]
[1750463524575,20.16667568,2406.9,2406.8,4.15489446]
[1750463524935,20.1666704,2406.9,2406.8,4.15489446]
[1750463525260,20.1666651,2406.9,2406.8,4.15489446]
[1750463525463,3.3486651,2406.9,2406.8,4.15489446]
[1750463525659,10.1666651,2406.9,2406.8,5.7453878]
[1750463525989,10.1666651,2406.9,2406.8,4.91439446]
[1750463526150,9.77810862,2406.9,2406.8,4.91439446]
[1750463527042,9.7782282,2406.9,2406.8,4.91439446]
[1750463527583,9.77822849,2406.9,2406.8,4.91439446]
[1750463527982,9.77822849,2406.9,2406.8,4.15489446]
[1750463528470,18.81874647,2406.9,2406.8,4.15489446]
[1750463528649,18.81877019,2406.9,2406.8,4.15489446]
[1750463529380,18.81897447,2406.9,2406.8,4.15489446]
[1750463529677,18.81897266,2406.9,2406.8,4.15489446]
[1750463530034,18.81897079,2406.9,2406.8,4.15489446]
[1750463530577,18.81898324,2406.9,2406.8,4.15489446]
[1750463531562,18.8189819,2406.9,2406.8,4.15489446]
[1750463531874,18.81899306,2406.9,2406.8,4.15489446]
[1750463532779,18.81918335,2406.9,2406.8,4.15489446]
[1750463533446,11.20907507,2406.9,2406.8,4.15489446]
[1750463534356,11.20927246,2406.9,2406.8,4.15489446]
[1750463534674,11.20927951,2406.9,2406.8,4.15489446]
[1750463534904,0.8238,2406.6,2405.9,4.15643093]
[1750463535042,0.8238,2406.6,2406.4,4.1555851]
[1750463535043,7.65181546,2406.5,2406.4,4.1555851]
[1750463535255,7.6521417,2406.5,2406.4,4.1555851]
[1750463535581,7.65246822,2406.5,2406.4,4.1555851]
[1750463535961,7.65247422,2406.5,2406.4,4.1555851]
[1750463536345,7.65247455,2406.5,2406.4,4.1555851]
[1750463536779,7.6524823,2406.5,2406.4,4.1555851]
[1750463536978,0.7780823,2406.5,2406.4,5.87281657]
[1750463537152,0.38904186,2406.5,2406.4,5.91436567]